bitfinex-derivatives/quotes_ETHF0:USTF0_20250107
["timestamp","ask_amount","ask_price","bid_price","bid_amount"]
[1736261971431,0.28221,3544.0,3537.3,2.7251]
[1736261971432,2.97901797,3549.1,3544.7,0.28214]
[1736261971630,0.28161,3551.4,3547.8,3.2078]
[1736261971930,3.03766242,3547.9,3545.6,3.2078]
[1736261972131,0.28215,3544.6,3544.5,3.2078]
[1736261972330,2.95139492,3551.3,3546.0,3.2078]
[1736261972532,0.70404,3551.4,3551.2,40.8]
[1736261972726,0.28197,3546.9,3546.8,78.60787383]
[1736261972927,0.01019536,3551.3,3546.8,3.20026885]
[1736261973131,3.2078,3552.5,3546.8,6.18358887]
[1736261973335,1.41007,3546.4,3540.6,3.2078]
[1736261973532,0.28224,3543.5,3541.0,3.2078]
[1736261973732,0.0563968,3546.3,3541.8,2.82377]
[1736261973733,2.96e-06,3543.4,3541.8,2.82377]
[1736261974035,2.96e-06,3543.4,3540.2,2.79]
[1736261974036,6.24546242,3541.9,3539.7,2.1191]
[1736261974237,2.31908,3542.1,3542.0,0.28236]
[1736261974431,7.17746324,3545.0,3543.8,0.22285044]
[1736261974630,7.17746324,3545.0,3543.4,0.28225]
[1736261974829,4.18e-06,3544.4,3544.2,0.28219]
[1736261975032,3.2078,3544.7,3542.6,3.2078]
[1736261975326,3.2078,3542.7,3541.5,40.8]
[1736261975527,3.2078,3544.3,3542.5,42.51241063]
[1736261975730,3.2078,3548.0,3543.6,0.7056]
[1736261975936,55.759,3563.7,3543.8,3.2078]
[1736261975937,0.564,3546.0,3543.8,3.2078]
[1736261976132,7.21549311,3551.2,3545.6,3.2078]
[1736261976332,3.2078,3552.8,3550.6,3.2078]
[1736261976528,1.40721,3553.7,3550.6,3.88]
[1736261976835,0.28166,3550.8,3550.7,5.09133934]
[1736261977038,5.85296696,3556.4,3550.7,21.15359461]
[1736261977235,0.28151,3552.8,3552.7,79.09390776]
[1736261977531,3.03766242,3557.1,3552.7,47.9278]
[1736261977733,0.70297,3556.9,3555.5,2.43032]
[1736261977927,1.40537,3558.4,3555.7,3.2078]
[1736261978127,0.28127,3555.8,3555.7,79.63390776]
[1736261978332,1.40355,3563.0,3555.9,3.2078]
[1736261978630,0.28098,3559.4,3559.3,3.2078]
[1736261978828,0.28098,3559.4,3559.3,79.60575776]
[1736261979032,0.28098,3559.4,3559.3,71.39141752]
[1736261979236,0.28086,3561.0,3559.3,72.56855376]
[1736261979437,3.2078,3564.1,3560.3,3.2078]
[1736261979632,3.03766242,3564.1,3560.7,3.2078]
[1736261979832,0.67204821,3562.8,3560.7,67.47818752]
[1736261980033,0.05613562,3562.8,3562.4,3.2078]
[1736261980334,1.40228,3566.2,3562.4,3.2078]
[1736261980335,1.78762094,3562.7,3562.4,3.2078]
[1736261980541,0.70128,3565.5,3562.4,3.2078]
[1736261980733,7.16030721,3562.9,3562.4,68.40818752]
[1736261981040,2.4607,3563.0,3562.8,3.2078]
[1736261981234,0.28054,3565.0,3562.8,9.0378]
[1736261981441,0.05610255,3564.9,3564.6,3.2078]
[1736261981638,0.05610255,3564.9,3563.9,3.2078]
[1736261981846,0.06557925,3564.9,3563.9,3.2078]
[1736261982040,6.55260431,3566.6,3564.1,3.2078]
[1736261982244,3.2078,3568.3,3563.4,3.2078]
[1736261982437,9.50891577,3564.8,3563.5,0.28065]
[1736261982638,9.50891577,3564.8,3564.3,0.28059]
[1736261982833,6.48189127,3564.8,3563.8,3.2078]
[1736261983033,6.48189127,3564.8,3563.6,9.283]
[1736261983034,3.2078,3564.8,3563.6,9.283]
[1736261983233,3.2078,3565.4,3565.2,0.28052]
[1736261983434,3.2078,3567.2,3565.0,0.28054]
[1736261983742,7.09794653,3567.1,3564.6,3.2078]
[1736261983940,7.09794653,3567.1,3565.8,3.2078]
[1736261984138,3.2078,3569.4,3567.0,3.2078]
[1736261984341,3.2078,3569.4,3564.7,0.2808]
[1736261984342,3.2078,3569.4,3567.4,3.2078]
[1736261984541,10.20677827,3568.2,3567.5,0.28034]
[1736261984738,3.2078,3569.4,3567.0,3.2078]
[1736261985038,3.2078,3569.4,3567.5,1.3402]
[1736261985233,6.88525686,3568.2,3560.1,0.22780276]
[1736261985437,3.2078,3567.5,3564.7,3.2078]
[1736261985642,26.93865,3566.5,3559.0,5.4523]
[1736261985840,29.51064,3566.5,3563.7,2.52367111]
[1736261986038,29.51064,3566.5,3563.5,1.4033]
[1736261986039,29.51064,3566.5,3561.1,14.0425]
[1736261986238,3.2078,3563.5,3558.0,0.2808]
[1736261986442,5.0,3560.4,3557.2,3.2078]
[1736261986742,2.02279,3561.3,3561.2,0.28084]
[1736261986946,2.63,3569.0,3561.2,0.05616084]
[1736261987244,3.2078,3563.2,3561.3,50.3548]
[1736261987543,3.2078,3564.8,3562.4,3.2078]
[1736261987737,3.2078,3566.7,3563.2,3.2078]
[1736261987940,0.05607581,3566.6,3566.0,0.28046]
[1736261988239,3.2078,3568.2,3565.9,8.428]
[1736261988446,0.05605224,3568.1,3567.3,0.28036]
[1736261988746,0.05605224,3568.1,3567.3,5.0]
[1736261988947,3.2078,3568.7,3568.5,0.28027]
[1736261989150,3.2078,3569.1,3568.4,8.428]
[1736261989444,3.2078,3570.8,3569.4,0.28019]
[1736261989650,0.05601142,3570.7,3569.9,3.2078]
[1736261989845,0.05601142,3570.7,3570.5,0.2801]
[1736261990147,2.4635,3570.0,3569.5,3.12370031]
[1736261990346,3.26381142,3570.7,3568.6,3.2078]
[1736261990644,3.2078,3571.5,3569.4,2.99846582]
[1736261990847,2.99846582,3577.4,3571.1,3.2078]
[1736261991140,7.0356656,3574.9,3573.5,3.2078]
[1736261991344,8.52891142,3576.1,3574.8,0.27977]
[1736261991639,1.68457551,3574.8,3570.4,3.2078]
[1736261991840,6.37530142,3571.6,3568.9,0.70058]
[1736261992035,6.37530142,3571.6,3568.8,0.28]
[1736261992036,3.2078,3570.7,3568.7,3.2078]
[1736261992239,6.97568529,3574.8,3570.5,3.2078]
[1736261992439,3.2078,3573.2,3571.6,0.28001]
[1736261992639,6.37530142,3569.9,3569.8,0.28016]
[1736261992843,6.37530142,3569.9,3568.3,0.70071]
[1736261992844,3.2078,3572.6,3568.4,0.2808]
[1736261993034,0.69937,3575.2,3570.0,6.31727364]
[1736261993035,9.17690142,3571.8,3570.0,6.31727364]
[1736261993237,3.2078,3571.4,3569.8,2.32]
[1736261993433,2.13179,3569.9,3569.1,3.2078]
[1736261993742,2.35806,3571.2,3569.9,3.13639305]
[1736261993943,3.2078,3571.4,3569.9,3.19639305]
[1736261994240,3.2078,3574.1,3571.0,3.2078]
[1736261994441,3.2078,3573.2,3570.5,3.2078]
[1736261994643,2.57787,3573.8,3572.1,3.2078]
[1736261994842,6.73948238,3578.0,3572.1,3.2078]
[1736261994843,3.2078,3574.2,3573.0,0.27991]
[1736261995048,3.2078,3575.4,3574.6,0.27978]
[1736261995238,3.2078,3574.4,3572.4,0.27996]
[1736261995449,3.2078,3575.3,3572.7,3.2078]
[1736261995639,3.2078,3575.3,3572.7,2.76]
[1736261995945,3.2078,3575.3,3574.4,3.2078]
[1736261996139,3.2078,3575.8,3575.2,40.8]
[1736261996337,3.2078,3576.2,3575.2,40.8]
[1736261996550,10.72857142,3575.9,3575.2,41.07974]
[1736261996746,3.2078,3576.1,3575.2,40.8]
[1736261996944,10.72857142,3574.5,3573.2,3.2078]
[1736261997245,3.2078,3574.1,3574.0,0.27983]
[1736261997548,3.2078,3574.6,3574.2,0.27982]
[1736261997745,3.2078,3575.0,3573.4,3.2078]
[1736261997950,2.99846582,3578.3,3572.6,3.3042551]
[1736261997951,3.2078,3575.1,3573.5,8.408]
[1736261998143,3.2078,3575.1,3573.5,8.548]
[1736261998344,3.2078,3575.1,3573.5,8.408]
[1736261998542,3.2078,3573.6,3571.1,8.408]
[1736261998742,3.2078,3574.3,3572.3,3.2078]
[1736261999047,3.2078,3573.8,3572.5,3.2078]
[1736261999348,3.2078,3573.8,3573.7,0.27986]
[1736261999547,3.2078,3573.8,3572.6,3.09992103]
[1736261999750,3.2078,3568.1,3564.7,3.2078]
[1736261999945,3.2078,3569.2,3566.7,3.2078]
[1736262000143,7.73774142,3566.9,3566.8,3.20396384]
[1736262000342,7.73774142,3566.9,3565.6,2.6206356]
[1736262000343,3.2078,3567.2,3565.6,2.6206356]
[1736262000546,4.43408198,3563.5,3561.7,0.702]
[1736262000848,3.21724198,3562.7,3561.4,3.2078]
[1736262001041,3.2078,3563.8,3561.4,0.01]
[1736262001346,3.2078,3563.9,3562.8,3.2078]
[1736262001540,3.2078,3565.4,3564.3,0.28059]
[1736262001744,3.2078,3566.4,3564.8,3.2078]
[1736262001947,3.21724198,3567.8,3565.8,3.2078]
[1736262002147,3.2078,3568.2,3566.2,3.2078]
[1736262002442,3.2078,3567.5,3565.9,2.9716535]
[1736262002645,3.2078,3567.6,3566.3,3.10764738]
[1736262002946,7.17549669,3570.2,3566.0,3.2078]
[1736262002947,3.2078,3567.8,3566.0,3.2078]
[1736262003147,3.2078,3567.6,3566.8,3.2078]
[1736262003350,3.21724198,3569.3,3567.4,3.2078]
[1736262003545,3.2078,3569.4,3568.1,3.2078]
[1736262003742,0.04606671,3568.8,3568.5,3.2078]
[1736262004145,3.69822582,3573.2,3568.5,3.2078]
[1736262004146,3.2078,3571.5,3569.1,3.2078]
[1736262004343,2.6467,3574.4,3571.2,3.2078]
[1736262004344,3.21724198,3572.2,3571.2,3.2078]
[1736262004545,3.21724198,3572.2,3568.6,3.26293824]
[1736262004546,0.2799,3573.2,3571.9,3.2078]
[1736262004749,3.21724198,3573.1,3571.9,3.2078]
[1736262005049,3.2078,3573.9,3572.2,3.2078]
[1736262005251,3.2078,3575.4,3573.0,3.2078]
[1736262005454,2.99846582,3577.9,3573.8,3.2078]
[1736262005455,3.21724198,3575.2,3573.8,3.2078]
[1736262005749,3.21724198,3574.5,3574.2,3.2078]
[1736262006049,3.21724198,3575.2,3574.2,3.2078]
[1736262006249,3.21724198,3574.3,3572.4,6.20957484]
[1736262006548,3.21724198,3573.2,3571.9,3.48779]
[1736262006752,3.2078,3573.6,3571.8,3.2078]
[1736262007145,3.2078,3573.6,3570.3,6.4483624]
[1736262007146,3.2078,3573.3,3571.1,3.16989658]
[1736262007343,3.21724198,3572.4,3571.5,0.28003]
[1736262007543,3.21724198,3571.3,3569.8,8.402]
[1736262007746,3.2078,3572.3,3571.2,40.8]
[1736262007949,3.21724198,3572.8,3572.2,3.2078]
[1736262008147,3.21724198,3572.4,3570.8,8.402]
[1736262008342,3.2078,3573.0,3570.6,3.2078]
[1736262008543,3.2078,3572.6,3572.5,0.27995]
[1736262008750,3.21724198,3572.9,3572.0,3.48779]
[1736262008951,3.2078,3574.3,3572.1,3.2078]
[1736262009152,3.21724198,3575.4,3574.5,0.27979]
[1736262009451,3.21724198,3575.0,3574.2,40.8]
[1736262009651,6.42504198,3575.3,3574.2,40.8]
[1736262009851,3.2078,3576.5,3574.9,3.2078]
[1736262010054,3.2078,3576.5,3575.1,0.27974]
[1736262010249,3.21724198,3576.2,3575.2,3.2078]
[1736262010556,4.851,3579.2,3575.2,3.2078]
[1736262010557,3.21724198,3577.6,3576.1,3.2078]
[1736262010754,3.2078,3577.8,3576.1,3.2078]
[1736262010949,3.2078,3578.3,3576.6,2.99846582]
[1736262011247,3.2078,3579.6,3577.4,3.2078]
[1736262011452,3.2078,3579.2,3577.4,3.2078]
[1736262011758,3.2078,3579.1,3577.6,0.27955]
[1736262011956,3.2078,3577.7,3576.0,3.2078]
[1736262012152,3.2078,3577.7,3575.5,8.396]
[1736262012347,3.2078,3578.2,3576.0,3.2078]
[1736262012546,3.2078,3578.8,3577.3,3.2078]
[1736262012746,3.21724198,3578.2,3576.1,3.18635579]
[1736262012946,3.2078,3578.9,3576.9,3.2078]
[1736262013152,3.2078,3578.9,3577.5,3.2078]
[1736262013346,3.2078,3579.5,3578.2,0.2795]
[1736262013854,3.2078,3579.5,3576.9,0.69902]
[1736262013855,3.2078,3578.9,3576.9,3.2078]
[1736262014051,3.2078,3578.9,3577.4,3.2078]
[1736262014351,3.2180349,3578.4,3576.5,2.96130938]
[1736262014554,6.42504198,3578.3,3577.3,0.27957]
[1736262014857,0.0102349,3578.4,3578.2,41.0795]
[1736262015055,0.0102349,3578.4,3578.2,40.8]
[1736262015352,0.0102349,3578.4,3576.7,8.392]
[1736262015659,0.0102349,3578.4,3578.3,40.8]
[1736262016052,0.0102349,3578.4,3577.8,3.2078]
[1736262016247,0.0102349,3578.4,3578.3,0.2795]
[1736262016569,0.0102349,3578.4,3578.3,40.8]
[1736262016751,3.2078,3579.2,3578.3,45.8]
[1736262016951,0.27932,3580.7,3578.3,45.8]
[1736262016952,3.22747688,3580.3,3579.0,0.27944]
[1736262017252,0.09173665,3579.7,3579.2,0.27942]
[1736262017450,3.2078,3579.4,3579.0,8.392]
[1736262017862,0.09173665,3579.7,3579.0,8.392]
[1736262018153,3.29953665,3579.7,3579.0,8.392]
[1736262018354,0.09173665,3579.7,3579.6,0.2794]
[1736262018555,8.18e-06,3579.7,3579.6,0.2794]
[1736262018750,3.2078,3580.7,3580.2,0.27934]
[1736262018958,3.2078,3580.7,3580.6,40.8]
[1736262019160,3.2078,3581.8,3580.6,40.8]
[1736262019555,3.2078,3580.9,3580.6,40.8]
[1736262019751,6.09009974,3584.1,3580.6,40.8]
[1736262019752,3.2078,3581.8,3580.6,40.8]
[1736262019956,3.2078,3581.8,3581.1,0.27928]
[1736262020160,3.2078,3581.8,3580.7,6.44159713]
[1736262020351,3.2078,3581.6,3580.6,40.8]
[1736262020550,3.22747688,3580.7,3578.8,8.6632]
[1736262020757,3.2078,3579.5,3578.9,0.28]
[1736262020955,3.2078,3580.0,3578.5,3.2078]
[1736262021157,3.2078,3580.1,3578.9,2.93104788]
[1736262021361,3.22747688,3578.9,3577.2,3.2078]
[1736262021564,6.43527688,3578.1,3576.2,3.2078]
[1736262021862,1.3354,3580.7,3576.3,40.8]
[1736262021863,3.2078,3577.3,3576.3,40.8]
[1736262022160,3.2078,3578.1,3576.3,43.73167895]
[1736262022358,3.2078,3578.1,3576.4,3.2078]
[1736262022561,1.3354,3580.7,3577.7,0.27954]
[1736262022562,3.2078,3579.4,3577.7,0.27954]
[1736262022755,1.3354,3580.7,3579.3,0.27942]
[1736262022955,1.3354,3580.7,3579.4,8.384]
[1736262023159,1.3354,3580.7,3579.4,16.58685624]
[1736262023354,1.3354,3580.7,3580.6,40.8]
[1736262023766,2.4525,3580.7,3579.4,0.27941]
[1736262023970,5.6603,3580.7,3579.2,8.384]
[1736262024269,5.6603,3580.7,3579.6,0.2794]
[1736262024270,2.4525,3580.7,3579.6,0.2794]
[1736262024471,2.4525,3580.7,3579.2,11.5918]
[1736262024665,2.4525,3580.7,3579.7,3.08958282]
[1736262024860,2.4525,3580.7,3579.7,1.66]
[1736262025063,0.2234,3580.6,3579.7,1.66]
[1736262025265,0.2234,3580.6,3579.8,3.08958282]
[1736262025464,0.2234,3580.6,3580.5,0.27933]
[1736262025867,0.2234,3580.6,3575.1,0.27975]
[1736262025868,3.2078,3576.8,3575.1,0.27975]
[1736262026075,14.30170992,3580.6,3575.0,2.74824286]
[1736262026076,3.2078,3575.2,3575.0,2.74824286]
[1736262026372,3.2078,3575.6,3575.0,2.74824286]
[1736262026562,3.2078,3576.0,3575.0,2.74824286]
[1736262026768,3.2078,3575.1,3575.0,2.74824286]
[1736262027064,3.2078,3575.1,3575.0,51.92924286]
[1736262027267,3.2078,3576.0,3575.0,53.01632836]
[1736262027465,3.2078,3576.8,3575.7,3.2078]
[1736262027663,3.2078,3576.8,3575.7,2.2]
[1736262027869,3.2078,3577.6,3576.1,3.2078]
[1736262028064,3.2078,3577.5,3576.1,3.2078]
[1736262028264,0.73903714,3578.5,3576.6,0.27963]
[1736262028469,3.2462,3578.4,3576.9,3.2078]
[1736262028774,3.2078,3579.0,3577.9,3.2078]
[1736262029066,0.45955714,3578.5,3577.8,3.2078]
[1736262029267,0.45955714,3578.3,3577.8,3.2078]
[1736262029468,3.9063,3578.9,3577.1,3.2078]
[1736262029667,3.9063,3578.9,3577.5,3.2078]
[1736262029863,3.9063,3578.9,3577.2,2.97247042]
[1736262029864,0.27953,3578.0,3577.2,2.97247042]
[1736262030066,3.2078,3578.4,3576.9,3.2078]
[1736262030264,0.45955714,3578.3,3576.9,3.2078]
[1736262030574,0.45955714,3578.1,3577.4,3.2078]
[1736262030769,0.27958,3577.3,3577.0,11.35347042]
[1736262030978,0.45955714,3577.9,3577.0,11.5888]
[1736262031169,3.2078,3578.1,3577.0,11.5888]
[1736262031370,3.2078,3577.3,3575.5,0.28]
[1736262031674,0.45955714,3576.0,3575.1,0.28]
[1736262031873,3.2078,3576.4,3575.2,0.28]
[1736262032074,3.2078,3577.1,3576.0,3.2078]
[1736262032269,0.45955714,3576.5,3576.0,3.2078]
[1736262032475,0.45955714,3576.5,3575.6,3.2078]
[1736262032676,3.48744,3576.5,3576.4,40.8]
[1736262032872,0.45955714,3576.5,3576.4,40.8]
[1736262033179,0.27951,3578.2,3576.5,0.27963]
[1736262033374,3.66735714,3576.6,3576.4,37.5922]
[1736262033574,0.45955714,3576.5,3575.1,3.2078]
[1736262033777,3.2078,3576.6,3575.1,3.2078]
[1736262034176,0.45955714,3576.1,3575.1,3.2078]
[1736262034371,3.2078,3577.0,3576.0,40.8]
[1736262034576,0.45955714,3576.8,3576.5,3.2078]
[1736262034873,3.2078,3579.2,3576.5,3.2078]
[1736262035082,3.2078,3579.0,3578.1,3.2078]
[1736262035269,0.27948,3578.7,3577.7,3.2078]
[1736262035472,0.2235,3578.6,3577.6,3.2078]
[1736262035677,0.27944,3579.2,3577.6,3.48735]
[1736262035883,0.27948,3578.6,3577.7,3.2078]
[1736262036080,3.2078,3579.7,3577.7,3.2078]
[1736262036374,3.2078,3579.3,3577.4,3.2078]
[1736262036577,3.2078,3579.3,3577.9,3.2078]
[1736262036782,0.27949,3578.5,3577.6,3.2078]
[1736262036978,3.2078,3580.0,3577.6,3.2078]
[1736262037177,3.2078,3579.6,3578.5,3.2078]
[1736262037383,3.2078,3579.6,3578.4,3.2078]
[1736262037680,0.69867,3578.8,3577.7,3.2078]
[1736262037881,3.2078,3578.9,3577.7,3.2078]
[1736262038183,0.27948,3578.6,3577.2,3.2078]
[1736262038487,3.2078,3578.4,3577.5,3.2078]
[1736262038776,0.2235,3578.7,3577.8,3.2078]
[1736262038976,0.2235,3578.7,3578.5,3.2078]
[1736262039179,1.9559,3578.8,3578.5,3.2078]
[1736262039180,3.4312,3580.6,3578.5,11.5918]
[1736262039385,0.27933,3580.5,3580.2,3.2078]
[1736262039681,0.2234,3580.6,3580.2,3.2078]
[1736262039881,0.50272,3580.6,3580.5,40.8]
[1736262040180,1.1171,3580.7,3580.5,40.8]
[1736262040376,2.09421,3580.7,3580.6,3.2078]
[1736262040573,1.8149,3580.7,3580.6,3.2078]
[1736262040882,2.0941,3580.7,3580.6,3.2078]
[1736262041078,2.3175,3580.7,3580.6,44.0078]
[1736262041477,2.3175,3580.7,3580.6,40.8]
[1736262041784,2.5409,3580.7,3580.6,40.8]
[1736262042087,2.82021,3580.7,3580.6,40.8]
[1736262042277,10.7487,3580.7,3578.6,8.382]
[1736262042482,0.27951,3578.2,3578.1,3.2078]
[1736262042680,0.69862,3579.0,3577.6,3.2078]
[1736262042880,3.2078,3578.8,3577.6,3.2078]
[1736262043080,3.2078,3578.7,3577.1,3.2078]
[1736262043479,3.2078,3576.7,3573.6,0.28]
[1736262043684,3.2078,3574.3,3573.7,40.8]
[1736262043880,3.2078,3573.8,3571.6,3.2078]
[1736262044079,3.2078,3573.5,3572.8,2.7952]
[1736262044276,3.2078,3572.9,3572.1,2.7952]
[1736262044477,3.2078,3572.3,3571.1,3.2078]
[1736262044676,3.2078,3572.9,3572.4,2.7952]
[1736262044879,0.69996,3572.2,3569.5,3.2078]
[1736262045077,3.2078,3572.2,3571.2,2.7952]
[1736262045280,3.2078,3572.2,3567.8,0.70081]
[1736262045281,3.2078,3572.7,3572.1,43.5952]
[1736262045479,3.2078,3573.6,3572.5,0.27995]
[1736262045684,3.2078,3574.4,3573.8,2.7952]
[1736262045880,3.2078,3574.6,3573.0,0.27991]
[1736262046083,3.2078,3575.0,3573.8,3.2078]
[1736262046290,3.2078,3576.0,3575.6,2.7952]
[1736262046481,0.27965,3576.4,3575.8,2.7952]
[1736262046685,3.2078,3577.3,3576.8,2.7952]
[1736262046890,0.27962,3576.8,3576.7,2.7952]
[1736262047092,3.2078,3576.9,3576.3,2.7952]
[1736262047093,0.27965,3576.4,3576.3,2.7952]
[1736262047289,3.2078,3576.9,3576.6,2.7952]
[1736262047479,3.2078,3576.9,3575.7,3.2078]
[1736262047687,3.2078,3576.3,3576.1,2.7952]
[1736262047884,3.2078,3576.2,3576.0,2.7952]
[1736262048086,0.69893,3577.4,3570.8,3.2078]
[1736262048087,3.2078,3574.9,3570.8,3.2078]
[1736262048382,0.27988,3573.5,3571.9,0.27999]
[1736262048587,3.2078,3573.5,3572.0,3.2078]
[1736262048787,3.2078,3572.8,3570.9,0.28]
[1736262048989,3.2078,3573.1,3571.6,3.2078]
[1736262049185,0.27996,3572.4,3571.1,3.2078]
[1736262049385,3.2078,3572.1,3571.1,3.2078]
[1736262049586,3.2078,3572.5,3571.1,3.2078]
[1736262050092,3.2078,3572.1,3571.1,3.2078]
[1736262050487,3.2078,3571.7,3570.3,3.2078]
[1736262050686,3.2078,3571.7,3570.3,3.48792]
[1736262050891,3.2078,3571.7,3570.3,3.2078]
[1736262051187,3.2078,3571.7,3570.7,3.2078]
[1736262051188,4.3277,3571.7,3570.7,3.2078]
[1736262051392,3.2078,3571.3,3570.3,3.2078]
[1736262051596,0.28009,3570.8,3570.0,8.37899249]
[1736262051886,3.2078,3570.6,3569.2,0.2808]
[1736262052194,3.2078,3571.2,3570.5,40.8]
[1736262052387,0.2801,3570.6,3570.5,40.8]
[1736262052589,3.2078,3570.7,3570.5,40.8]
[1736262053088,0.2801,3570.6,3570.5,40.8]
[1736262053287,3.2078,3570.7,3570.5,40.8]
[1736262053488,3.2078,3571.2,3570.5,40.8]
[1736262053790,0.224,3571.1,3570.5,40.8]
[1736262054095,0.224,3571.1,3570.9,3.2078]
[1736262054290,0.224,3571.1,3571.0,8.393]
[1736262054490,3.2078,3572.9,3571.0,12.54347003]
[1736262054686,3.2078,3573.3,3571.9,0.27999]
[1736262054887,0.6997,3572.8,3571.3,3.2078]
[1736262055090,3.2078,3572.6,3571.7,3.2078]
[1736262055489,3.2078,3572.6,3572.5,40.8]
[1736262055687,3.2078,3572.6,3571.7,3.2078]
[1736262055688,1.3435,3572.6,3571.7,3.2078]
[1736262055987,3.2078,3572.5,3571.5,3.2078]
[1736262056189,1.3435,3572.6,3572.0,3.2078]
[1736262056389,1.3435,3572.6,3571.5,3.2078]
[1736262056593,1.3435,3572.6,3572.5,40.8]
[1736262056792,4.90445,3572.6,3572.5,40.8]
[1736262057193,4.6245,3572.6,3571.0,11.6008]
[1736262057394,0.27999,3572.0,3571.0,11.6008]
[1736262057591,3.2078,3571.4,3571.0,8.393]
[1736262057793,3.2078,3571.4,3568.6,6.09009974]
[1736262058093,3.2078,3571.4,3527.6,71.892]
[1736262058094,3.2078,3569.8,3568.3,0.2808]
[1736262058284,0.28024,3568.9,3567.8,0.2808]
[1736262058484,7.49010974,3572.0,3567.6,8.6748]
[1736262058485,3.2078,3569.6,3567.7,0.2808]
[1736262058689,3.2078,3569.6,3568.9,3.2078]
[1736262058892,3.2078,3569.5,3568.2,3.2078]
[1736262059092,3.2078,3568.6,3567.7,0.2808]
[1736262059292,3.2078,3569.1,3568.0,3.2078]
[1736262059488,3.2078,3568.6,3567.6,8.394]
[1736262059692,3.2078,3569.3,3568.3,3.2078]
[1736262059894,0.28021,3569.2,3568.3,3.2078]
[1736262060193,3.2078,3569.3,3568.3,3.2078]
[1736262060402,3.2078,3569.7,3568.8,3.2078]
[1736262060588,3.2078,3570.7,3569.4,0.28019]
[1736262060791,3.2078,3571.6,3569.9,3.2078]
[1736262060993,3.2078,3571.2,3569.5,11.63363703]
[1736262061288,0.28012,3570.4,3569.5,8.397]
[1736262061493,3.2078,3569.7,3568.7,0.2808]
[1736262061805,6.09009974,3572.0,3568.0,8.397]
[1736262061806,3.2078,3570.0,3568.9,3.2078]
[1736262061994,3.2078,3570.0,3569.0,40.8]
[1736262062193,3.2078,3570.0,3569.1,3.2078]
[1736262062597,3.2078,3570.0,3569.0,40.8]
[1736262062598,3.2078,3569.2,3569.0,40.8]
[1736262062790,3.2078,3570.0,3569.0,40.8]
[1736262062991,3.2078,3569.6,3569.0,40.8]
[1736262063196,0.28019,3569.5,3569.0,40.8]
[1736262063403,3.2078,3569.2,3568.0,8.397]
[1736262063697,0.28027,3568.5,3568.0,8.397]
[1736262063904,3.2078,3568.1,3567.1,40.8]
[1736262064099,3.2078,3567.5,3567.1,40.8]
[1736262064495,3.2078,3568.3,3567.1,40.8]
[1736262064701,3.2078,3569.2,3567.6,3.2078]
[1736262065004,3.2078,3569.8,3568.8,3.2078]
[1736262065205,3.2078,3570.5,3568.9,8.399]
[1736262065396,3.2078,3571.0,3569.2,3.2078]
[1736262065699,3.2078,3570.6,3569.6,3.2078]
[1736262065901,0.28002,3571.7,3570.4,3.2078]
[1736262066198,2.11658,3572.6,3571.3,0.28004]
[1736262066199,1.4167,3572.6,3571.3,0.28004]
[1736262066404,3.2078,3571.9,3571.4,8.401]
[1736262066597,1.4167,3572.6,3571.4,8.401]
[1736262066598,3.2078,3572.3,3571.4,8.401]
[1736262066805,3.2078,3571.9,3571.4,8.401]
[1736262067109,3.2078,3572.5,3571.4,8.401]
[1736262067407,1.4167,3572.6,3571.8,3.2078]
[1736262067603,1.4167,3572.6,3571.4,8.401]
[1736262067798,0.2801,3570.7,3569.2,0.28021]
[1736262067999,3.2078,3570.6,3569.2,1.49]
[1736262068203,3.2078,3570.6,3569.1,8.401]
[1736262068204,3.2078,3569.8,3569.1,8.401]
[1736262069203,0.2801,3569.7,3569.2,40.8]
[1736262069398,3.2078,3571.1,3570.1,0.28014]
[1736262069604,3.2078,3570.9,3570.1,0.28014]
[1736262069806,3.2078,3572.1,3570.8,3.2078]
[1736262070307,3.2078,3572.5,3571.2,3.2078]
[1736262070510,3.2078,3572.5,3571.5,0.28003]
[1736262070806,0.2799,3572.4,3572.2,3.2078]
[1736262071013,0.2799,3572.4,3572.0,0.27999]
[1736262071014,0.2799,3572.4,3572.0,3.2078]
[1736262071303,3.2078,3572.1,3571.1,8.4]
[1736262071509,3.2078,3571.4,3571.1,8.4]
[1736262071707,3.2078,3571.4,3569.6,8.399]
[1736262071907,3.2078,3571.0,3569.6,8.399]
[1736262072100,0.70001,3571.9,3569.6,8.399]
[1736262072101,3.2078,3570.2,3569.6,8.399]
[1736262072300,3.2078,3569.8,3569.6,8.399]
[1736262072500,3.2078,3570.1,3569.6,8.399]
[1736262072907,3.2078,3569.7,3568.5,3.2078]
[1736262073110,3.2078,3568.6,3567.1,3.2078]
[1736262073314,3.4881,3568.1,3567.1,3.2078]
[1736262073612,3.2078,3568.1,3567.5,3.2078]
[1736262073817,3.2078,3568.3,3567.7,40.8]
[1736262074002,7.49043974,3571.1,3567.7,40.8]
[1736262074003,3.2078,3568.9,3567.7,40.8]
[1736262074204,0.28016,3569.8,3568.7,3.2078]
[1736262074406,0.28011,3570.6,3569.2,3.2078]
[1736262074611,3.2078,3570.1,3569.1,3.2078]
[1736262074820,3.2078,3569.2,3568.8,8.399]
[1736262075113,3.48801,3569.2,3568.8,8.399]
[1736262075305,3.2078,3569.2,3568.8,8.399]
[1736262075910,3.48801,3569.2,3568.8,8.399]
[1736262076110,3.2078,3569.2,3567.7,40.8]
[1736262076415,3.2078,3569.2,3568.3,3.2078]
[1736262076621,3.2078,3568.8,3567.8,3.2078]